bitfinex/quotes_ETHUSD_20250215
["timestamp","ask_amount","ask_price","bid_price","bid_amount"]
[1739637112403,5.28,2693.7,2693.2,3.71304]
[1739637112613,3.71254,2693.6,2693.2,0.55]
[1739637113324,3.75894978,2693.6,2693.1,0.7711]
[1739637113496,3.71281,2693.4,2693.0,3.53862641]
[1739637113994,7.42569,2693.4,2693.0,3.53862641]
[1739637114323,7.42568,2693.4,2692.9,0.7711]
[1739637114495,3.71281,2693.4,2693.0,0.55]
[1739637114691,7.84367972,2693.4,2693.0,0.55]
[1739637114995,4.13080972,2693.4,2693.0,0.55]
[1739637115522,9.41080972,2693.4,2693.0,0.55]
[1739637116404,5.69799972,2693.4,2693.0,0.55]
[1739637116995,9.41078972,2693.4,2693.0,0.55]
[1739637119645,5.69799972,2693.4,2693.0,4.08862641]
[1739637120159,5.28,2693.4,2693.2,0.55]
[1739637120707,5.28,2693.4,2693.2,4.26304]
[1739637120934,5.28,2693.4,2693.2,0.55]
[1739637121118,5.28,2693.4,2693.1,0.55]
[1739637121536,8.99266,2693.5,2693.1,0.55]
[1739637121729,5.28,2693.5,2693.1,0.55]
[1739637122629,3.71285,2693.4,2693.1,0.55]
[1739637122834,3.71301,2693.3,2692.8,3.71349]
[1739637123754,3.71301,2693.3,2692.8,0.55]
[1739637124009,3.71301,2693.3,2692.7,4.36922641]
[1739637124010,9.96708067,2693.5,2693.0,7.25195641]
[1739637124145,1.05582919,2693.4,2693.1,0.55]
[1739637124482,3.71295,2693.3,2693.1,0.55]
[1739637125075,5.28,2693.5,2693.1,0.55]
[1739637125244,5.28,2693.5,2693.1,1.3806]
[1739637125445,5.28,2693.5,2693.1,5.09371]
[1739637126379,5.28,2693.5,2693.1,4.54371]
[1739637126683,5.28,2693.5,2693.4,0.55]
[1739637127448,8.99243,2693.7,2693.2,0.55]
[1739637127788,5.28,2693.7,2693.2,0.55]
[1739637128076,5.28,2693.7,2693.4,0.55]
[1739637128858,8.99243,2693.7,2693.2,0.55]
[1739637129258,3.7128,2693.4,2692.9,4.54399]
[1739637129568,3.71302,2693.3,2692.7,8.08287641]
[1739637129749,3.71302,2693.3,2692.8,4.2636]
[1739637129952,3.71302,2693.3,2692.8,0.55]
[1739637130165,3.71291,2693.3,2692.8,0.55]
[1739637130484,3.75932745,2693.3,2692.8,0.55]
[1739637130847,3.71314,2693.2,2692.7,4.36922641]
[1739637131049,3.71326,2693.1,2692.7,4.36922641]
[1739637131283,3.71326,2693.1,2692.8,0.55]
[1739637131493,5.28,2693.2,2692.8,0.55]
[1739637131791,5.28,2693.2,2693.1,0.55]
[1739637132154,5.28,2693.2,2692.9,4.26344]
[1739637132697,5.28,2693.2,2693.1,0.55]
[1739637132996,5.28,2693.2,2693.1,5.09379]
[1739637133200,5.28,2693.2,2693.1,6.32836364]
[1739637133790,8.99223,2693.8,2693.3,0.55]
[1739637134488,5.28,2693.8,2693.3,0.55]
[1739637134660,5.28,2693.8,2693.4,5.01738]
[1739637134851,5.28,2693.8,2693.4,8.73008]
[1739637135288,5.28,2693.8,2693.5,0.55]
[1739637136997,8.99225,2693.8,2693.5,0.55]
[1739637137297,10.262676,2693.8,2693.5,0.55]
[1739637137468,10.262676,2693.8,2693.4,0.7547]
[1739637137469,10.262676,2693.8,2693.4,0.55]
[1739637138290,13.974986,2693.8,2693.4,0.55]
[1739637138498,10.262676,2693.8,2693.4,0.55]
[1739637138798,3.71278,2693.4,2692.9,0.8228]
[1739637139154,8.99278,2693.4,2692.9,0.8228]
[1739637139392,8.99278,2693.4,2692.7,3.53862641]
[1739637139604,3.71305,2693.2,2692.7,7.25228641]
[1739637139901,3.71305,2693.2,2692.7,3.53862641]
[1739637139902,3.71326,2693.1,2692.7,3.53862641]
[1739637140970,5.28,2693.2,2692.8,0.55]
[1739637141155,8.99312,2693.2,2692.8,0.55]
[1739637141974,3.7132,2693.1,2692.8,0.55]
[1739637142858,3.71335,2693.0,2692.8,0.55]
[1739637144184,10.263546,2693.2,2692.8,0.55]
[1739637144393,3.71334,2693.0,2692.5,0.55]
[1739637144592,10.263546,2693.2,2692.5,0.55]
[1739637144978,3.71341,2693.0,2692.5,0.55]
[1739637146543,4.47318386,2693.0,2692.5,0.55]
[1739637147296,3.7135,2692.9,2692.5,0.55]
[1739637147606,3.71319,2693.1,2692.5,4.26396]
[1739637147808,3.71337,2693.0,2692.5,0.55]
[1739637148305,3.71348,2692.9,2692.5,0.55]
[1739637148468,4.612968,2692.8,2692.3,4.53709]
[1739637148817,4.612968,2692.8,2692.4,0.55]
[1739637148997,3.71378,2692.7,2692.4,0.55]
[1739637149765,0.899348,2692.8,2692.4,0.55]
[1739637150187,4.612968,2692.8,2692.4,0.55]
[1739637150404,3.71362,2692.8,2692.4,0.55]
[1739637152726,3.71348,2692.9,2692.4,0.55]
[1739637152932,7.42704,2692.9,2692.4,0.55]
[1739637153094,3.71348,2692.9,2692.4,0.55]
[1739637153293,3.71363,2692.8,2692.4,0.55]
[1739637154193,8.99363,2692.8,2692.4,0.55]
[1739637154424,8.99363,2692.8,2692.4,4.26413]
[1739637154425,5.28,2692.8,2692.4,4.26413]
[1739637154731,5.28,2692.8,2692.5,3.71397]
[1739637154905,5.28,2692.8,2692.5,0.55]
[1739637158435,5.28,2692.8,2692.5,4.264]
[1739637159337,5.28,2692.8,2692.5,0.55]
[1739637159897,5.28,2692.8,2692.7,4.08862641]
[1739637160115,5.28,2693.0,2692.7,4.08862641]
[1739637160736,3.71346,2692.9,2692.7,4.08862641]
[1739637161295,5.28,2693.0,2692.7,4.08862641]
[1739637161842,3.71348,2692.9,2692.7,4.08862641]
[1739637161994,3.71348,2692.9,2692.4,4.29232641]
[1739637162198,3.71348,2692.9,2692.5,0.55]
[1739637163541,3.71365,2692.8,2692.5,0.55]
[1739637164440,3.76023493,2692.7,2692.5,0.55]
[1739637164603,3.71381,2692.7,2692.5,0.55]
[1739637165336,3.71409,2692.5,2692.1,4.33562641]
[1739637165667,3.71409,2692.5,2691.9,3.90275788]
[1739637165668,5.28,2692.5,2691.9,0.797]
[1739637166029,3.71417,2692.4,2692.0,0.55]
[1739637166227,3.71432,2692.3,2691.8,3.53862641]
[1739637166538,3.7146,2692.1,2691.8,3.53862641]
[1739637168252,3.71432,2692.3,2691.9,0.55]
[1739637168473,0.371432,2692.2,2691.9,0.55]
[1739637168770,3.71496,2691.9,2691.5,3.53862641]
[1739637168952,8.99508,2691.8,2691.5,3.53862641]
[1739637169124,5.28,2691.8,2691.5,7.25401641]
[1739637169324,5.28,2691.8,2691.6,0.55]
[1739637169924,5.28,2691.8,2691.6,4.26513]
[1739637170924,5.28,2691.8,2691.7,0.55]
[1739637171271,5.28,2692.1,2691.8,0.55]
[1739637171482,5.28,2692.1,2691.7,2.49891864]
[1739637171483,5.28,2692.1,2692.0,4.08862641]
[1739637172355,5.28,2692.1,2692.0,0.55]
[1739637172529,5.28,2692.1,2691.8,0.55]
[1739637172975,5.28,2692.1,2692.0,0.55]
[1739637173479,0.37602363,2692.7,2692.0,4.88562641]
[1739637173480,5.28,2692.4,2692.0,4.88562641]
[1739637173630,5.28,2692.4,2692.2,0.55]
[1739637174025,5.28,2692.4,2692.3,3.71429]
[1739637174264,5.28,2692.4,2692.3,4.08862641]
[1739637174882,5.28,2692.4,2692.3,7.80291641]
[1739637175769,5.28,2692.4,2692.3,0.55]
[1739637177990,5.28,2692.6,2692.1,4.51148]
[1739637178454,5.28,2692.6,2692.2,0.55]
[1739637178655,5.28,2692.6,2692.2,4.2644]
[1739637179687,5.28,2692.6,2692.4,0.55]
[1739637180484,5.28,2692.6,2692.3,0.55]
[1739637181384,6.62353234,2692.6,2692.3,0.55]
[1739637181785,5.28,2692.6,2692.3,4.26425]
[1739637182484,5.28,2692.6,2692.5,0.55]
[1739637183778,5.28,2692.7,2692.5,0.55]
[1739637184305,5.28,2692.8,2692.6,7.80250641]
[1739637184461,5.28,2693.2,2693.0,0.55]
[1739637184956,5.28,2693.2,2692.8,0.55]
[1739637184957,0.04641869,2693.1,2692.8,0.55]
[1739637185784,0.74569597,2693.1,2692.6,7.25247641]
[1739637185989,3.71342,2693.0,2692.5,0.7793]
[1739637186191,3.71342,2693.0,2692.4,3.71407]
[1739637186407,5.0586446,2693.0,2692.5,0.55]
[1739637186701,3.71353,2692.9,2692.5,0.55]
[1739637186890,3.71353,2692.9,2692.3,8.03214641]
[1739637187093,3.71379,2692.7,2692.1,4.49376]
[1739637187406,0.04642725,2692.6,2692.2,3.71435]
[1739637187608,3.71375,2692.7,2692.3,0.55]
[1739637187810,0.04642737,2692.6,2692.3,0.55]
[1739637188704,0.04642737,2692.6,2692.4,0.55]
[1739637188903,0.04642732,2692.8,2692.4,0.55]
[1739637189113,5.0585546,2693.0,2692.4,0.55]
[1739637189301,0.74569597,2693.1,2692.9,0.55]
[1739637189476,5.28,2693.2,2692.9,4.26338]
[1739637189674,5.28,2693.4,2692.9,4.26338]
[1739637190117,0.75288104,2693.3,2693.1,0.55]
[1739637190317,5.28,2693.4,2693.1,1.402657]
[1739637190483,5.28,2693.4,2693.3,5.04221]
[1739637191489,0.267,2694.3,2693.9,0.55]
[1739637191719,9.7188066,2694.2,2693.9,0.55]
[1739637191921,6.0071066,2694.2,2693.5,0.55]
[1739637192126,3.71204,2694.0,2693.5,0.55]
[1739637192417,3.71219,2693.9,2693.4,0.55]
[1739637192603,3.71225,2693.8,2693.2,3.71294]
[1739637192805,5.28,2693.7,2693.2,3.71294]
[1739637193102,5.28,2693.7,2692.8,4.49281]
[1739637193103,3.71272,2693.5,2692.8,4.49281]
[1739637193303,3.7591958,2693.4,2692.8,4.49281]
[1739637193502,3.7131,2693.2,2692.6,3.71379]
[1739637193906,3.7597,2693.1,2692.5,4.4933]
[1739637194122,3.7597,2693.1,2692.5,0.7793]
[1739637194314,3.71337,2693.0,2692.4,7.25276641]
[1739637194714,5.28,2693.1,2692.5,4.2639]
[1739637194909,5.28,2693.1,2692.5,0.55]
[1739637195283,5.28,2693.1,2692.7,4.08862641]
[1739637196530,8.99322,2693.1,2692.7,4.08862641]
[1739637196935,8.99322,2693.1,2692.5,0.55]
[1739637197428,5.28,2693.1,2692.7,0.55]
[1739637197722,8.99322,2693.1,2692.7,0.55]
[1739637197930,8.99322,2693.1,2692.5,0.55]
[1739637198284,5.28,2693.1,2692.5,4.26389]
[1739637198484,8.99327,2693.1,2692.5,4.26389]
[1739637198718,8.99327,2693.1,2692.5,4.26399]
[1739637199428,5.28,2693.1,2692.7,0.55]
[1739637199633,5.28,2693.1,2692.7,4.26367]
[1739637199836,5.28,2693.1,2692.5,0.55]
[1739637200034,0.04642196,2693.0,2692.5,4.26391]
[1739637200408,3.71334,2693.0,2692.5,4.26391]
[1739637200727,5.28,2693.1,2692.7,3.71365]
[1739637200908,10.263814,2693.1,2692.5,4.26392]
[1739637201108,13.977094,2693.1,2692.5,4.26392]
[1739637201308,10.263814,2693.1,2692.7,0.55]
[1739637201890,5.28,2693.1,2692.8,0.55]
[1739637202295,5.28,2693.1,2693.0,0.55]
[1739637202819,5.28,2693.1,2693.0,4.26333]
[1739637203228,5.28,2693.4,2693.2,0.55]
[1739637203402,5.28,2693.6,2693.2,0.55]
[1739637203603,5.28,2693.6,2693.1,0.55]
[1739637203803,3.71265,2693.5,2693.1,0.55]
[1739637204002,0.04641487,2693.4,2693.0,0.55]
[1739637204423,3.75927487,2693.4,2693.0,0.55]
[1739637205739,5.11043864,2693.4,2692.8,0.7585]
[1739637205939,5.11043864,2693.4,2692.5,3.71393]
[1739637205940,3.7133,2693.1,2692.5,3.71393]
[1739637206245,9.03978351,2693.0,2692.5,3.71393]
[1739637206407,8.99336,2693.0,2692.6,0.55]
[1739637207445,8.99336,2693.0,2692.1,8.334]
[1739637207446,5.28,2693.0,2692.1,16.34562641]
[1739637207603,3.71383,2692.7,2692.1,17.99840473]
[1739637207806,3.71383,2692.7,2692.2,0.55]
[1739637208032,3.71383,2692.7,2692.1,21.71288473]
[1739637208745,3.71383,2692.7,2692.2,0.55]
[1739637208948,3.76025864,2692.7,2692.1,4.29712641]
[1739637209107,3.71393,2692.6,2692.1,4.29712641]
[1739637209311,3.71383,2692.7,2692.2,0.55]
[1739637209922,3.7139,2692.6,2692.2,0.55]
[1739637210330,4.16073795,2692.7,2692.2,4.26442]
[1739637210331,3.71383,2692.7,2692.2,4.26442]
[1739637210546,5.28,2692.6,2692.2,4.26442]
[1739637210755,5.28,2692.6,2692.2,0.55]
[1739637210928,5.28,2692.6,2692.2,4.26431]
[1739637211258,5.28,2692.6,2692.2,5.49190264]
[1739637211746,5.28,2692.6,2692.4,0.55]
[1739637213447,5.28,2692.6,2692.4,4.26404]
[1739637213625,5.28,2692.6,2692.5,5.03962]
[1739637213825,5.28,2692.6,2692.5,1.3256]
[1739637214026,5.28,2692.6,2692.5,0.55]
[1739637215025,5.28,2692.6,2692.5,4.26402]
[1739637215345,5.28,2692.6,2692.5,5.41569864]
[1739637215949,5.28,2692.6,2692.5,6.19129864]
[1739637216509,5.28,2693.4,2693.1,0.55]
[1739637216713,6.02610844,2693.6,2693.1,4.26316]
[1739637217139,5.28,2693.6,2693.3,4.2629]
[1739637217340,5.28,2693.6,2693.3,0.55]
[1739637218461,5.28,2693.6,2693.1,0.55]
[1739637219536,5.28,2693.6,2693.5,0.55]
[1739637219857,5.28,2693.6,2693.5,1.3256]
[1739637220159,5.28,2693.9,2693.5,4.86422641]
[1739637220334,5.28,2693.9,2693.5,4.08862641]
[1739637220925,5.28,2693.9,2693.5,7.80126641]
[1739637221571,5.28,2693.9,2693.6,0.55]
[1739637222480,5.28,2693.9,2693.7,3.71228]
[1739637222645,3.71185,2694.1,2693.5,7.25121641]
[1739637223079,3.71185,2694.1,2693.6,0.55]
[1739637223272,6.01809204,2694.2,2693.6,0.55]
[1739637223454,3.71184,2694.1,2693.5,7.25118641]
[1739637223655,3.71184,2694.1,2693.6,0.55]
[1739637224084,7.42374,2694.1,2693.6,0.55]
[1739637224491,3.71197,2694.0,2693.6,0.55]
[1739637224792,0.04640509,2693.9,2693.6,0.55]
[1739637224996,3.71184,2694.1,2693.6,0.55]
[1739637225163,3.71209,2693.9,2693.6,0.55]
[1739637225366,3.71252,2693.6,2693.2,4.30822641]
[1739637225562,3.71227,2693.8,2693.2,8.02126641]
[1739637225779,3.71227,2693.8,2693.3,4.26283]
[1739637225960,3.71227,2693.8,2693.3,5.49124864]
[1739637226277,3.71211,2693.9,2693.5,0.55]
[1739637226595,3.7123,2693.8,2693.4,0.55]
[1739637227089,3.7123,2693.8,2693.3,0.55]
[1739637227288,3.7123,2693.8,2693.3,4.26289]
[1739637227489,3.7123,2693.8,2693.3,5.49131364]
[1739637227689,3.7123,2693.8,2693.3,0.55]
[1739637228257,7.42409,2694.0,2693.5,0.55]
[1739637228471,8.99211,2693.9,2693.5,0.55]
[1739637228867,3.75871713,2693.8,2693.4,0.55]
[1739637229518,3.71231,2693.8,2693.4,0.55]
[1739637229931,7.47107713,2693.8,2693.3,0.55]
[1739637230138,3.71231,2693.8,2693.3,0.55]
[1739637230430,3.71231,2693.8,2693.3,4.26291]
[1739637230636,3.75871713,2693.8,2693.3,4.26291]
[1739637230924,3.71252,2693.6,2693.2,4.30822641]
[1739637231529,3.71231,2693.8,2693.3,0.55]
[1739637232032,3.71246,2693.7,2693.3,0.55]
[1739637232537,0.0464099,2693.6,2693.3,0.55]
[1739637232926,3.71246,2693.7,2693.3,0.55]
[1739637233146,3.71277,2693.4,2693.0,0.7696]
[1739637233350,5.28,2693.4,2693.1,0.55]
[1739637234230,5.28,2693.4,2693.1,4.26317]
[1739637235054,5.28,2693.4,2693.1,0.55]
[1739637236633,5.28,2693.4,2693.3,0.55]
[1739637237229,5.28,2693.6,2693.3,0.55]
[1739637238419,5.28,2693.6,2693.5,0.55]
[1739637238850,5.28,2693.6,2693.5,4.08862641]
[1739637239315,5.28,2693.6,2693.5,0.55]
[1739637243277,8.99233,2693.8,2693.5,0.55]
[1739637243773,5.28,2693.8,2693.5,0.55]
[1739637243941,5.28,2693.8,2693.5,4.26261]
[1739637244545,5.28,2693.8,2693.5,5.137992]
[1739637245384,5.28,2693.8,2693.5,1.425382]
[1739637245684,8.99229,2693.8,2693.5,0.55]
[1739637246443,5.28,2693.8,2693.5,0.55]
[1739637246969,8.99224,2693.8,2693.5,0.55]
[1739637247469,5.28,2693.8,2693.5,0.55]
[1739637248228,0.04640506,2693.7,2693.2,3.53862641]
[1739637248525,7.42542,2693.5,2693.1,0.7892]
[1739637248725,3.71244,2693.7,2693.1,4.50226]
[1739637249146,8.99244,2693.7,2693.2,4.08862641]
[1739637249354,3.71259,2693.6,2693.2,4.08862641]
[1739637249569,3.7590804,2693.5,2693.2,4.08862641]
[1739637249774,3.71254,2693.6,2693.2,0.55]
[1739637250778,3.7589504,2693.6,2693.2,0.55]
[1739637250990,7.4715604,2693.6,2693.2,0.55]
[1739637251279,3.71254,2693.6,2693.2,0.55]
[1739637251574,3.71264,2693.5,2693.2,0.55]
[1739637251808,3.7128,2693.4,2693.2,0.55]
[1739637252080,3.71306,2693.2,2692.9,0.7892]
[1739637252236,3.71306,2693.2,2692.7,4.50285]
[1739637252441,3.71306,2693.2,2692.8,0.55]
[1739637252763,0.75044465,2693.4,2692.7,0.7892]
[1739637252961,3.71347,2692.9,2692.6,3.53862641]
[1739637253181,3.71341,2693.0,2692.6,3.53862641]
[1739637253491,5.28,2692.9,2692.6,0.55]
[1739637253697,3.71363,2692.8,2692.3,4.32782641]
[1739637253888,8.99363,2692.8,2692.3,4.32782641]
[1739637254090,5.28,2692.8,2692.3,5.50350305]
[1739637254300,5.28,2692.8,2692.4,0.55]
[1739637254490,5.28,2692.8,2692.4,4.26415]
[1739637254692,5.28,2692.8,2692.4,0.55]
[1739637255668,5.28,2692.8,2692.4,4.26414]
[1739637255878,5.28,2692.8,2692.6,0.55]
[1739637256620,5.28,2692.8,2692.4,0.55]
[1739637256919,9.040064,2692.8,2692.4,0.55]
[1739637257098,8.99364,2692.8,2692.4,0.55]
[1739637257409,0.04642404,2692.7,2692.4,0.55]
[1739637258005,5.28,2692.8,2692.4,0.55]
[1739637258370,9.04007399,2692.8,2692.4,0.55]
[1739637258570,5.28,2692.8,2692.4,0.55]
[1739637258910,9.04013427,2692.8,2692.4,0.55]
[1739637259112,8.99371,2692.8,2692.4,0.55]
[1739637259711,5.28,2692.8,2692.4,0.55]
[1739637260138,5.28,2692.8,2692.4,1.40919864]
[1739637260414,0.04642521,2692.7,2692.4,1.40919864]
[1739637260613,5.28,2692.8,2692.4,5.12333864]
[1739637260811,5.28,2692.8,2692.4,1.40919864]
[1739637261115,3.71374,2692.7,2692.4,1.40919864]
[1739637262017,3.71374,2692.7,2692.4,0.55]
[1739637264091,8.99374,2692.7,2692.4,0.55]
[1739637264928,5.28,2692.7,2692.4,0.55]
[1739637265254,5.28,2692.7,2692.4,4.26404]
[1739637265690,5.28,2692.7,2692.4,0.55]
[1739637267431,8.99376,2692.7,2692.4,0.55]
[1739637267729,5.28,2692.7,2692.4,0.55]
[1739637268092,8.99378,2692.7,2692.4,0.55]
[1739637268807,0.04642721,2692.6,2692.4,0.55]
[1739637269006,3.76030721,2692.6,2692.4,0.55]
[1739637269395,5.28,2692.7,2692.4,0.55]
[1739637271303,8.99378,2692.7,2692.4,0.55]
[1739637271541,5.28,2692.7,2692.4,0.55]
[1739637272238,5.28,2692.7,2692.4,4.26409]
[1739637272415,5.28,2692.7,2692.4,0.55]
[1739637273019,8.99381,2692.7,2692.4,0.55]
[1739637273526,5.28,2692.7,2692.1,3.71448]
[1739637273735,3.71399,2692.6,2692.1,4.45814436]
[1739637274542,3.71402,2692.5,2692.2,0.55]
[1739637275048,0.04643062,2692.4,2692.2,0.55]
[1739637275343,3.71429,2692.3,2691.8,0.8272]
[1739637275547,5.28,2692.4,2691.8,5.38882918]
[1739637276542,5.28,2692.4,2691.9,0.55]
[1739637276543,8.99419,2692.4,2691.9,0.55]
[1739637276913,9.7456413,2692.4,2691.9,4.26484]
[1739637277119,3.76074461,2692.3,2691.9,0.55]
[1739637277417,3.71431,2692.3,2691.9,0.55]
[1739637277828,6.0314513,2692.4,2691.9,4.26484]
[1739637278161,9.7456213,2692.4,2691.9,4.26484]
[1739637279863,6.0314513,2692.4,2692.0,3.71471]
[1739637280470,3.71432,2692.3,2691.9,0.55]
[1739637280771,6.0314513,2692.4,2691.9,5.58401556]
[1739637280931,9.7457313,2692.4,2691.9,5.58401556]
[1739637281269,3.71429,2692.3,2691.9,0.55]
[1739637281457,7.47512461,2692.3,2691.8,0.55]
[1739637281654,3.71445,2692.2,2691.8,0.55]
[1739637281971,3.76101463,2692.1,2691.7,3.53862641]
[1739637282269,3.71471,2692.0,2691.6,4.54246]
[1739637282433,3.71471,2692.0,2691.7,0.55]
[1739637282634,3.71458,2692.1,2691.7,0.55]
[1739637282858,3.71472,2692.0,2691.5,4.26538]
[1739637283065,3.71472,2692.0,2691.5,6.3523462]
[1739637283433,3.71458,2692.1,2691.5,10.0676562]
[1739637283659,7.42925,2692.1,2691.5,6.3522762]
[1739637283971,7.42925,2692.1,2691.7,0.55]
[1739637283972,3.71458,2692.1,2691.7,0.55]
[1739637284949,5.28,2692.0,2691.7,0.55]
[1739637286193,8.99475,2692.0,2691.6,0.55]
[1739637286388,5.28,2692.0,2691.6,4.26523]
[1739637287187,5.28,2692.0,2691.8,3.71496]
[1739637287387,5.28,2692.0,2691.9,0.55]
[1739637290803,5.28,2692.2,2691.9,0.55]
[1739637291305,9.04093451,2692.2,2691.9,0.55]
[1739637291510,5.28,2692.2,2691.9,0.55]
[1739637292202,9.04087451,2692.2,2691.8,0.55]
[1739637292368,8.99444,2692.2,2691.8,0.55]
[1739637292564,5.28,2692.2,2691.8,4.26496]
[1739637292769,5.28,2692.2,2692.0,1.3486]
[1739637293264,5.28,2692.2,2691.9,0.55]
[1739637293705,8.99444,2692.2,2691.9,0.55]
[1739637294319,5.28,2692.2,2691.9,0.55]
[1739637294666,5.28,2692.2,2692.0,3.71469]
[1739637295198,5.28,2692.2,2691.9,0.55]
[1739637296415,5.28,2692.2,2691.9,4.26471]
[1739637296706,5.28,2692.3,2692.1,0.55]
[1739637296954,5.28,2692.3,2692.2,1.3486]
[1739637297209,5.28,2692.3,2692.2,5.06303]
[1739637298717,5.28,2692.8,2692.5,3.71394]
[1739637299013,5.28,2693.0,2692.6,0.55]
[1739637299589,3.71349,2692.9,2692.6,0.55]
[1739637300483,7.42708,2692.9,2692.6,0.55]
[1739637300689,0.04642385,2692.8,2692.4,0.55]
[1739637300889,5.06032339,2692.9,2692.4,0.55]
[1739637301227,5.06032339,2692.9,2692.4,4.26411]
[1739637301387,3.71349,2692.9,2692.4,4.26411]
[1739637301585,7.42706,2692.9,2692.4,0.55]
[1739637301791,3.71349,2692.9,2692.4,0.55]
[1739637302424,3.71347,2692.9,2692.4,4.26411]
[1739637302627,5.28,2692.8,2692.6,0.55]
[1739637303302,5.28,2692.8,2692.7,0.8055]
[1739637304329,5.28,2692.8,2692.6,0.55]
[1739637305334,5.28,2693.0,2692.6,1.41080764]
[1739637305548,5.28,2693.0,2692.1,3.71451]
[1739637305549,5.28,2693.0,2692.9,8.60758641]
[1739637306723,5.28,2693.0,2692.9,4.89412641]
[1739637307858,5.28,2693.0,2692.9,8.60758641]
[1739637308060,0.74676867,2693.6,2693.0,0.55]
[1739637308061,5.28,2693.4,2693.0,0.55]
[1739637308281,5.28,2693.5,2693.2,0.55]
[1739637308558,5.28,2693.5,2693.2,4.08862641]
[1739637308768,3.71294,2693.3,2692.9,4.34412641]
[1739637309271,7.42593,2693.3,2693.0,0.55]
[1739637309587,7.42596,2693.3,2693.0,0.55]
[1739637310093,3.75947697,2693.2,2693.0,0.55]
[1739637310258,3.71291,2693.3,2693.0,0.55]
[1739637310663,0.04641686,2693.2,2693.0,0.55]
[1739637311051,3.75947686,2693.2,2693.0,0.55]
[1739637311497,0.04641686,2693.2,2693.0,0.55]
[1739637311800,5.28,2693.2,2693.0,4.26331]
[1739637311952,5.28,2693.2,2693.0,5.49540364]
[1739637312363,4.46866256,2693.7,2693.0,5.49540364]
[1739637312364,5.28,2693.4,2693.3,0.8055]
[1739637312565,5.28,2693.4,2693.3,8.60703641]
[1739637313172,5.28,2693.4,2693.3,4.89412641]
[1739637313759,5.28,2693.4,2693.3,4.08862641]
[1739637314003,5.28,2693.4,2693.3,0.55]
[1739637315906,8.99277,2693.4,2693.3,0.55]
[1739637316061,10.26332,2693.4,2693.3,0.55]
[1739637324207,11.01413597,2693.4,2693.3,0.55]
[1739637324533,9.74358597,2693.4,2693.3,0.55]
[1739637326099,5.28,2693.4,2693.3,0.55]
[1739637328655,5.28,2693.4,2693.3,4.08862641]
[1739637328955,5.28,2693.4,2693.3,8.56553641]
[1739637329257,3.7121,2693.9,2693.5,0.764]
[1739637329258,8.9921,2693.9,2693.5,0.764]
[1739637329552,8.9921,2693.9,2693.6,0.55]
[1739637331354,5.28,2693.9,2693.6,0.55]
[1739637333259,8.99217,2693.9,2693.6,0.55]
[1739637333819,5.28,2693.9,2693.6,0.55]
[1739637334058,8.99209,2693.9,2693.6,0.55]
[1739637334707,5.28,2693.9,2693.6,0.55]
[1739637334908,5.28,2693.9,2693.6,1.052674]
[1739637336926,5.28,2693.9,2693.6,4.59130041]
[1739637337269,5.28,2693.9,2693.7,0.55]
[1739637339877,5.28,2694.1,2693.9,0.55]
[1739637340311,5.28,2694.1,2693.9,1.057989]
[1739637341277,5.28,2694.1,2693.9,4.59661541]
[1739637341978,5.28,2694.1,2693.9,8.30863541]
[1739637343014,5.28,2694.1,2694.0,4.26195]
[1739637343225,5.28,2694.5,2694.1,1.3676]
[1739637343396,5.28,2694.6,2694.3,4.08862641]
[1739637343923,5.28,2694.6,2694.5,0.55]
[1739637345216,8.99112,2694.6,2694.5,0.55]
[1739637345516,8.99112,2694.6,2694.5,1.04062264]
[1739637345517,5.28,2694.6,2694.5,1.04062264]
[1739637346778,5.28,2694.6,2694.3,3.53862641]
[1739637347017,5.28,2694.6,2693.9,3.53862641]
[1739637347221,7.42328,2694.3,2694.0,0.55]
[1739637347378,3.71169,2694.2,2694.0,0.55]
[1739637347584,3.71181,2694.1,2694.0,0.55]
[1739637347779,3.71202,2694.0,2693.7,0.7692]
[1739637347985,3.71202,2694.0,2693.1,12.04411]
[1739637347986,3.7123,2693.8,2693.4,0.7692]
[1739637348335,3.7123,2693.8,2693.5,0.43078264]
[1739637348615,3.71237,2693.7,2693.5,0.43078264]
[1739637348792,3.71237,2693.7,2693.1,9.1002]
[1739637348990,3.71262,2693.6,2693.1,9.1002]
[1739637349220,3.71262,2693.6,2693.1,12.81336]
[1739637349420,3.71266,2693.5,2693.1,9.1002]
[1739637349714,7.42524,2693.6,2693.1,9.1002]
[1739637350017,3.71262,2693.6,2693.2,0.55]
[1739637350181,7.42524,2693.6,2693.2,0.55]
[1739637350615,3.71262,2693.6,2693.2,0.55]
[1739637351120,0.72918135,2693.9,2693.2,5.03224]
[1739637351414,0.72918135,2693.9,2693.4,0.55]
[1739637351622,3.71231,2693.8,2693.4,0.55]
[1739637353123,9.03871729,2693.8,2693.4,0.55]